[Event "Hungarian Championship Women 2022"]
[Site "Budapest"]
[Date "2022.12.09"]
[Round "5.5"]
[White "Ivan-Gal, Hanna Krisztina"]
[Black "Dudas, Eszter"]
[Result "1/2-1/2"]
[ECO "C18"]
[WhiteElo "2164"]
[BlackElo "2135"]
[Annotator "TA"]
[PlyCount "80"]
[EventDate "2022.12.03"]
[EventType "tourn"]
[EventCountry "HUN"]
[SourceTitle "playchess.com"]
[Source "ChessBase"]
[SourceQuality "1"]
[TimeControl "40/5400+30:1800+30"]

{[%evp 18,80,50,52,52,51,54,43,70,33,59,48,58,54,36,0,0,0,0,0,0,0,22,-52,-47,-44,0,0,0,0,0,0,-5,-38,-14,-58,0,-104,16,0,0,0,0,0,0,0,0,0,0,0,0,0,0,0,0,0,0,0,0,0,0,0,0,0,0]} 1. e4 {[%emt 0:00:32]} e6 {[%emt 0:00:37]} 2. d4 {[%emt 0:00:09]} d5 {[%emt 0:00:05]} 3. Nc3 {[%emt 0:00:09]} Bb4 {[%emt 0:00:18]} 4. e5 {[%emt 0:00:16]} c5 {[%emt 0:00:18]} 5. a3 {[%emt 0:00:11]} Bxc3+ {[%emt 0:00:09]} 6. bxc3 {[%emt 0:00:05]} Qc7 {[%emt 0:00:28]} 7. Qg4 {[%emt 0:00:31]} f5 {[%emt 0:00:23]} 8. Qh5+ {[%emt 0:00:32]} g6 {[%emt 0:00:53]} 9. Qd1 {[%emt 0:00:36]} cxd4 {[%emt 0:01:23]} 10. cxd4 {[%emt 0:00:35]} Qc3+ {[%emt 0:00:33] C18: French: 3 Nc3 Bb4: Main line: 7 h4 and 7 Qg4.} 11. Bd2 {[%emt 0:00:14]} Qxd4 {[%emt 0:00:19]} 12. Nf3 {[%emt 0:00:12]} Qa4 {[%emt 0:02:10] White is slightly better.} 13. Bd3 {[%emt 0:03:10][%mdl 1024] White has compensation.} (13. Rb1 $5 {[%cal Rf1b5]} a6 14. c4 Qxd1+ 15. Rxd1 $11) 13... Ne7 {[%emt 0:03:04] [#]} 14. O-O $146 {[%emt 0:03:46]} ({Predecessor:} 14. Rb1 Nbc6 15. Bb5 Qe4+ 16. Be3 O-O 17. Bd3 Qa4 18. Qc1 Qa5+ 19. Bd2 Qc7 20. Qb2 {1-0 (54) Stephan,W-Mack,A corr 1963}) 14... O-O {[%emt 0:17:06][%cal Bh8f8,Bf8f7,Bf7e7][%mdl 32]} 15. Rb1 {[%emt 0:01:56]} Nec6 {[%emt 0:09:09]} 16. Bb5 {[%emt 0:07:58]} Qxa3 {[%emt 0:01:08]} 17. Rb3 {[%emt 0:03:44] Prevents a6.} Qe7 {[%emt 0:01:53]} 18. Bg5 {[%emt 0:01:24]} Qe8 {[%emt 0:15:13]} 19. Bh6 {[%emt 0:21:05] Against a6} Rf7 {[%emt 0:01:53]} 20. c4 {[%emt 0:04:34]} ({White should try} 20. Ng5 $11) 20... dxc4 {[%emt 0:09:57]} 21. Bxc4 {[%emt 0:00:30]} Na5 {[%emt 0:00:52]} (21... Na6 $5) 22. Rd3 $1 {[%emt 0:01:19] Rd8 would kill now.} Nbc6 {[%emt 0:02:59] Against Rd8} (22... Nxc4 $2 23. Rd8 Re7 24. Rxe8+ Rxe8 25. Qa4 $18) 23. Ba2 {[%emt 0:02:21] Threatens to win with Ng5. A strong pair of Bishops.} b5 {[%emt 0:02:00]} 24. Ng5 {[%emt 0:01:36] Prevents b4.} (24. Re1 {simplifies} Nc4 25. Bxc4 bxc4 26. Rd6) 24... Re7 {[%emt 0:00:37]} 25. Rd6 {[%emt 0:02:43]} Nb7 {[%emt 0:01:01] White should prevent ...a5.} (25... Nxe5 $2 26. Rd8 Bd7 27. Rxe8+ Raxe8 28. h3 $18) 26. Qe2 {[%emt 0:06:52][%cal Oe2b5]} Nb4 {[%emt 0:02:24]} (26... Nxd6 $2 27. exd6 Rf7 28. Nxf7 Qxf7 29. Rc1 $18 (29. Qxb5 Bd7 $16)) (26... Rb8 $15) 27. Bb3 {[%emt 0:02:33] [#]} Nc5 {[%emt 0:01:50]} (27... Nxd6 $2 28. exd6 Rf7 29. Nxe6 $18) (27... a5 $1 $17 {White must now prevent ...Nc5.} 28. Rfd1 Na6) 28. Qd2 $1 $11 {[%emt 0:02:09] Strongly threatening Rd8. The position is equal.} Nc6 {[%emt 0:03:52][%cal Bb4c6,Bc6e5,Be5c4][%mdl 32] Inhibits Rd8.} (28... Nxb3 $2 29. Qxb4 a5 30. Qxb3 $18) 29. Ba2 {[%emt 0:01:12]} Nb7 {[%emt 0:03:06]} (29... Nxe5 $2 30. Rd8 Bd7 31. Rxe8+ Raxe8 32. Rc1 $18) 30. Rc1 {[%emt 0:04:33]} Nxe5 {[%emt 0:06:01]} 31. Rxc8 {[%emt 0:03:35][%mdl 64] [#] Remove Defender} Rxc8 {[%emt 0:02:30]} 32. Rxe6 {[%emt 0:05:16] Chess con chili.} Nc4 {[%emt 0:01:56]} 33. Rxe7 $40 {[%emt 0:00:46][%mdl 128] White attacks.} Qxe7 {[%emt 0:01:55]} 34. Qd5+ {[%emt 0:00:25]} Kh8 {[%emt 0:00:05][%cal Re7e1]} 35. Nf7+ {[%emt 0:02:12]} (35. Qxb5 $2 Qe1#) 35... Kg8 {[%emt 0:00:19][%cal Re7e1]} 36. Ne5+ {[%emt 0:03:03]} Kh8 {[%emt 0:00:09]} 37. Bxc4 {[%emt 0:06:27]} Rxc4 {[%emt 0:07:32]} (37... bxc4 $2 38. Nf7+ Kg8 39. Nd6+ Kh8 40. Be3 $18 (40. Nxc8 $2 Qe1#)) 38. Nf7+ {[%emt 0:00:56]} Kg8 {[%emt 0:00:04][%cal Re7e1]} 39. Ne5+ {[%emt 0:00:13]} Kh8 {[%emt 0:00:06]} 40. Nf7+ {[%emt 0:00:00]} Kg8 {[%emt 0:00:00] Weighted Error Value: White=0.12 (very precise) /Black=0.14 (very precise)} 1/2-1/2

[Event "Hungarian Championship Women 2022"]
[Site "Budapest"]
[Date "2022.12.10"]
[Round "6.1"]
[White "Terbe, Zsuzsanna"]
[Black "Dudas, Eszter"]
[Result "1-0"]
[ECO "D35"]
[WhiteElo "2114"]
[BlackElo "2135"]
[Annotator "TA"]
[PlyCount "127"]
[EventDate "2022.12.03"]
[EventType "tourn"]
[EventCountry "HUN"]
[SourceTitle "playchess.com"]
[Source "ChessBase"]
[SourceQuality "1"]
[TimeControl "40/5400+30:1800+30"]

{[%evp 25,127,20,24,21,24,-16,7,17,10,0,0,0,0,0,9,0,5,-1,77,90,88,82,139,0,0,0,0,0,0,0,400,379,666,696,643,394,397,396,774,766,744,709,700,676,833,148,154,89,114,56,68,26,22,18,75,62,90,49,166,159,289,289,282,282,275,275,275,275,253,231,203,186,181,58,80,44,150,56,793,393,377,375,311,241,947,939,874,898,969,962,964,894,29985,29986,29986,29987,29987,29988,29988,29989,29989,29990,29990,29991]} 1. d4 {[%emt 0:00:32]} d5 {[%emt 0:00:37]} 2. c4 {[%emt 0:00:10]} e6 {[%emt 0:00:15]} 3. Nc3 {[%emt 0:00:08]} Nf6 {[%emt 0:00:23]} 4. cxd5 {[%emt 0:00:07]} exd5 {[%emt 0:00:06]} 5. Bg5 {[%emt 0:00:10]} Be7 {[%emt 0:00:43]} 6. e3 {[%emt 0:00:07]} c6 {[%emt 0:00:30]} 7. Bd3 {[%emt 0:00:08]} O-O {[%emt 0:00:45]} 8. Qc2 {[%emt 0:00:12]} h6 {[%emt 0:00:08]} 9. Bh4 {[%emt 0:00:06]} Nbd7 {[%emt 0:01:15]} 10. Nge2 {[%emt 0:10:06]} Re8 {[%emt 0:00:43]} 11. O-O {[%emt 0:00:09]} Ne4 {[%emt 0:00:56]} 12. Bxe7 {[%emt 0:00:12]} Qxe7 {[%emt 0:00:06]} 13. Bxe4 {[%emt 0:00:05]} dxe4 {[%emt 0:00:10]} 14. a3 {[%emt 0:16:15] D36: Queen's Gambit Declined: Exchange Variation: Main line (5 Bg5 c6 6 Qc2).} Nf6 {[%emt 0:13:53]} 15. Ng3 {[%emt 0:02:44]} b6 {[%emt 0:04:46]} (15... h5) (15... h5 $5 {[%cal Rh5h4]}) 16. Qa4 {[%emt 0:13:52] The position is equal.} Bd7 {[%emt 0:05:00] [#]} 17. Rfd1 $146 {[%emt 0:02:37]} ({Predecessor:} 17. Qa6 h5 18. h3 h4 19. Nge2 g5 20. Qb7 Qd6 21. f3 Rad8 22. Qxa7 exf3 23. Rxf3 {0-1 (41) Harsha,B (2024)-Zhu,Y (1963) Maribor 2012}) 17... h5 {[%emt 0:05:10][%cal Bh6h5,Bh5h4][%mdl 32]} 18. h3 {[%emt 0:07:27]} h4 {[%emt 0:01:18]} 19. Nge2 {[%emt 0:00:52]} Nh5 {[%emt 0:07:26]} 20. Rac1 {[%emt 0:08:51]} Qg5 {[%emt 0:11:29]} 21. Kh1 {[%emt 0:00:48]} Re6 {[%emt 0:16:26]} (21... Qf5 $11 22. Rf1 Nf6) 22. d5 $16 {[%emt 0:02:44]} Rg6 {[%emt 0:01:25][%csl Gg6][%cal Rg5g2]} 23. Rg1 {[%emt 0:02:54]} (23. Qxe4 Re8 24. Qf3 Rf6 $15) 23... Qf5 {[%emt 0:06:19]} (23... a5 $142) 24. Qxe4 {[%emt 0:07:34]} (24. dxc6 $16 Rxc6 25. Nd4 (25. Qxe4 Qxf2 26. Qd4 Qf5 $16)) 24... Qxf2 $11 {[%emt 0:01:05]} 25. Rgf1 {[%emt 0:04:32]} Ng3+ {[%emt 0:00:18]} 26. Nxg3 {[%emt 0:00:07]} Qxg3 {[%emt 0:00:05]} 27. Ne2 $36 {[%emt 0:00:33][%csl LRc6,LRg3][%mdl 2048] White is more active.} Qg5 {[%emt 0:02:28][%mdl 8192]} (27... Qd6 $11 {and Black stays safe.}) 28. dxc6 $18 {[%emt 0:02:36]} Be6 {[%emt 0:08:37]} (28... Rxc6 29. Rxc6 Re8) 29. Nf4 {[%emt 0:01:46]} Bf5 {[%emt 0:00:42]} 30. Qf3 {[%emt 0:02:27]} Rd6 {[%emt 0:00:23]} 31. e4 {[%emt 0:02:01][%cal Be3e4,Be4e5][%mdl 32]} Bg6 $2 {[%emt 0:01:28]} (31... Bh7 32. c7 Rc8) 32. c7 {[%emt 0:02:08]} Rc8 {[%emt 0:00:14] Inhibits e5.} 33. Nxg6 {[%emt 0:02:14]} Qxg6 {[%emt 0:01:21]} 34. e5 {[%emt 0:01:44]} Rd3 {[%emt 0:00:19]} 35. Qf4 {[%emt 0:02:16]} (35. Qb7 $18 {is the precise move to win.} Qe6 36. Rfd1 (36. Qxa7 Rxh3+ 37. gxh3 Qxh3+ 38. Kg1 Qg3+ 39. Kh1 Qh3+ 40. Kg1 Qg3+ 41. Kh1 Qh3+ $11) 36... Rxd1+ 37. Rxd1) 35... Qe6 {[%emt 0:04:39]} 36. Rf2 {[%emt 0:02:57]} (36. Rc4 $142) 36... Qd7 {[%emt 0:01:17]} 37. Qc4 {[%emt 0:03:37]} (37. Qxh4 Rxc7 38. Rxc7 Qxc7 $14) (37. Rfc2 $16) 37... Rd5 $14 {[%emt 0:00:57]} 38. Qc6 {[%emt 0:01:02] Prevents Rc5. White is much more active.} (38. b4 $5 {[%cal Rf2c2]}) 38... Qxc6 {[%emt 0:01:40]} 39. Rxc6 $11 {[%emt 0:00:02][%mdl 4096] Endgame aiming for Rd6. KRR-KRR} Rd7 {[%emt 0:03:20]} (39... Rc5 $11 {keeps the balance.} 40. Rxc5 bxc5) 40. Rfc2 $16 {[%emt 0:00:00]} Kf8 {[%emt 0:00:00]} 41. a4 {[%emt 0:13:35]} Rd5 {[%emt 0:11:30]} (41... Re7 $14) 42. e6 $1 $18 {[%emt 0:02:13]} ({Don't play} 42. Rd6 $6 Rxe5 43. Rd8+ Re8 $14) 42... f6 {[%emt 0:09:37] [#]} (42... fxe6 $16 {is a better defense.} 43. Rxe6 Rd7) 43. a5 $1 {[%emt 0:06:33]} bxa5 {[%emt 0:02:26]} 44. R2c5 {[%emt 0:00:10]} Rd1+ {[%emt 0:00:09]} 45. Kh2 {[%emt 0:00:05]} Ke7 {[%emt 0:00:27]} 46. Rxa5 {[%emt 0:01:40]} Re1 {[%emt 0:00:33]} 47. Rxa7 {[%emt 0:05:15]} Rxe6 {[%emt 0:00:08]} 48. Rc4 {[%emt 0:00:53]} Rb6 {[%emt 0:03:12]} 49. Rc2 {[%emt 0:02:19]} ({Don't take} 49. Rxh4 Rc6 $16) (49. b4 $18) 49... Kd7 $14 {[%emt 0:01:11]} 50. Kg1 {[%emt 0:00:05]} (50. Rd2+ {simplifies} Ke8 51. Rd8+ Rxd8 52. cxd8=Q+ Kxd8 53. Rxg7 Rxb2 54. Rg4) 50... Rb3 {[%emt 0:03:44] [#]} ({Black should play} 50... Rb4 $14) 51. Kf2 {[%emt 0:00:05]} (51. Ra3 $1 $16 {[%cal Ra3b3]} Rb7 52. Rd3+ Ke6 53. Rdc3) 51... Rg3 {[%emt 0:01:07][%mdl 8192] Black cannot hold the game after this.} (51... Rb4 $14) 52. Ra3 {[%emt 0:00:49]} (52. b4 $142 {Threatens to win with b5.} Rg5 53. Rb7) 52... Rg5 $18 {[%emt 0:01:36]} (52... Rxa3 $2 53. bxa3 g6 54. Kf3) 53. Rd3+ {[%emt 0:00:19]} Ke7 {[%emt 0:00:08]} 54. Re2+ {[%emt 0:00:50]} Kf7 $2 {[%emt 0:00:33]} (54... Re5 55. Rc2 Re4) 55. Rd7+ {[%emt 0:00:10]} Kg6 {[%emt 0:00:04]} 56. Rc2 {[%emt 0:01:25]} Rf5+ {[%emt 0:01:06]} 57. Kg1 {[%emt 0:00:10]} Ra5 {[%emt 0:00:24]} 58. Rd8 {[%emt 0:00:24]} Raa8 {[%emt 0:00:05]} 59. Rxc8 {[%emt 0:00:05] White mates.} Rxc8 {[%emt 0:00:03]} 60. b4 {[%emt 0:00:05][%cal Bb2b4,Bb4b5,Bb5b6,Bb6b7][%mdl 32]} Kf7 {[%emt 0:00:16]} 61. b5 {[%emt 0:00:06]} Ke7 {[%emt 0:00:24]} 62. b6 {[%emt 0:00:09]} Kd7 {[%emt 0:00:07]} 63. b7 {[%emt 0:01:07]} Rxc7 {[%emt 0:00:08]} 64. Rd2+ {[%emt 0:00:05] Weighted Error Value: White=0.47/Black=0.49} (64. b8=B $2 {loses.} Rxc2 65. Ba7 Ke6 $19) 1-0

[Event "Hungarian Championship Women 2022"]
[Site "Budapest"]
[Date "2022.12.10"]
[Round "6.2"]
[White "Havanecz, Bianka"]
[Black "Ivan-Gal, Hanna Krisztina"]
[Result "1/2-1/2"]
[ECO "E70"]
[WhiteElo "2210"]
[BlackElo "2164"]
[Annotator "TA"]
[PlyCount "62"]
[EventDate "2022.12.03"]
[EventType "tourn"]
[EventCountry "HUN"]
[SourceTitle "playchess.com"]
[Source "ChessBase"]
[SourceQuality "1"]
[TimeControl "40/5400+30:1800+30"]

{[%evp 16,62,47,43,54,33,37,29,25,27,64,62,71,68,75,57,68,54,50,14,19,15,29,14,37,6,25,10,44,44,60,43,50,12,39,0,0,0,0,0,0,0,6,7,6,0,0,0,0]} 1. d4 {[%emt 0:00:33]} Nf6 {[%emt 0:00:38]} 2. c4 {[%emt 0:00:07]} g6 {[%emt 0:00:08]} 3. Nc3 {[%emt 0:00:05]} Bg7 {[%emt 0:00:06]} 4. e4 {[%emt 0:00:06]} d6 {[%emt 0:00:06]} 5. Bd3 {[%emt 0:00:05]} O-O {[%emt 0:00:13]} 6. Nge2 {[%emt 0:00:04]} Nc6 {[%emt 0:00:15]} 7. O-O {[%emt 0:00:51]} Nh5 {[%emt 0:00:30]} 8. Bc2 {[%emt 0:01:29]} e5 {[%emt 0:00:24]} 9. d5 {[%emt 0:01:15]} Ne7 {[%emt 0:00:14] E70: King's Indian: Miscellaneous lines with 4 e4, including 5 Nge2 and 5 Bd3 0-0 6 Nge2.} 10. Ng3 {[%emt 0:05:43]} Nf4 {[%emt 0:01:32]} 11. Be3 {[%emt 0:12:50]} f5 {[%emt 0:01:40][%cal Of4g2] [#] White has an edge.} 12. exf5 $146 {[%emt 0:02:52]} ({Predecessor:} 12. f3 Nxg2 13. Kxg2 f4 14. Bd2 fxg3 15. hxg3 h6 16. Rh1 g5 17. Qe2 Ng6 18. Nd1 {1-0 (38) Reinderman,D (2526)-Brandenburg,D (2435) Hilversum 2008}) 12... Nxf5 {[%emt 0:01:20]} 13. Bxf5 {[%emt 0:08:17]} Bxf5 {[%emt 0:02:34]} 14. Nxf5 {[%emt 0:03:39]} Rxf5 {[%emt 0:07:51]} 15. Ne4 {[%emt 0:00:07]} Qh4 {[%emt 0:08:10][%cal Of4g2] [#] White must now prevent ...Nxg2!} 16. f3 {[%emt 0:03:10] And now g3 would win.} Rh5 {[%emt 0:01:39]} 17. Bxf4 {[%emt 0:00:12]} (17. h3 {is interesting.} a5 18. Qd2 b6 19. b3) 17... exf4 {[%emt 0:04:35]} 18. h3 {[%emt 0:00:07]} Qe7 {[%emt 0:10:00]} 19. Rf2 {[%emt 0:07:27]} Re5 {[%emt 0:02:52]} 20. Re2 {[%emt 0:00:10]} g5 {[%emt 0:03:38]} 21. Qd3 {[%emt 0:00:46]} Re8 {[%emt 0:03:01]} 22. Rae1 {[%emt 0:00:14]} b6 {[%emt 0:09:25]} 23. b3 {[%emt 0:05:14]} h6 {[%emt 0:02:23]} 24. Kf1 {[%emt 0:01:53]} Qf7 {[%emt 0:03:02]} 25. Nc3 {[%emt 0:11:15]} Rxe2 {[%emt 0:02:24] The position is equal.} 26. Rxe2 {[%emt 0:00:05]} Rxe2 {[%emt 0:01:18]} 27. Nxe2 $11 {[%emt 0:00:12] KQB-KQN} Qf6 {[%emt 0:02:37]} 28. Qe4 {[%emt 0:01:01]} Kf7 {[%emt 0:05:37]} 29. Kf2 {[%emt 0:00:31]} Qe5 {[%emt 0:00:26]} 30. Qxe5 {[%emt 0:00:37]} Bxe5 {[%emt 0:00:09]} 31. Nc1 {[%emt 0:00:11]} Bd4+ {[%emt 0:00:28] Weighted Error Value: White=0.13 (very precise) /Black=0.10 (very precise)} 1/2-1/2

[Event "Hungarian Championship Women 2022"]
[Site "Budapest"]
[Date "2022.12.10"]
[Round "6.3"]
[White "Demeter, Dorina"]
[Black "Terbe, Julianna"]
[Result "1/2-1/2"]
[ECO "D10"]
[WhiteElo "2149"]
[BlackElo "2282"]
[Annotator "TA"]
[PlyCount "49"]
[EventDate "2022.12.03"]
[EventType "tourn"]
[EventCountry "HUN"]
[SourceTitle "playchess.com"]
[Source "ChessBase"]
[SourceQuality "1"]
[TimeControl "40/5400+30:1800+30"]

{[%evp 13,49,10,12,11,12,14,11,18,20,12,11,14,10,16,21,21,19,14,15,12,24,12,25,22,20,22,35,25,36,0,0,0,40,0,0,0,38,0]} 1. d4 {[%emt 0:00:38]} d5 {[%emt 0:01:36]} 2. c4 {[%emt 0:00:16]} c6 {[%emt 0:00:05]} 3. cxd5 {[%emt 0:00:49]} cxd5 {[%emt 0:00:07]} 4. Bf4 {[%emt 0:00:07]} Nf6 {[%emt 0:00:11]} 5. Nc3 {[%emt 0:00:21]} Nc6 {[%emt 0:00:12]} 6. e3 {[%emt 0:00:23]} Bf5 {[%emt 0:00:14]} 7. Qb3 {[%emt 0:01:13]} Na5 $1 {[%emt 0:00:24]} 8. Qa4+ {[%emt 0:00:19] D10: Slav Defence: 3 cxd5 (without early Nf3) and 3 Nc3.} Bd7 {[%emt 0:00:06]} 9. Qc2 {[%emt 0:00:21] White wants to play Nb5.} e6 {[%emt 0:00:25]} 10. Nf3 {[%emt 0:00:32] The position is equal.} Be7 {[%emt 0:01:30]} 11. Bd3 {[%emt 0:03:39]} Nc6 {[%emt 0:01:48]} 12. a3 {[%emt 0:00:12]} Nh5 {[%emt 0:00:05]} 13. Be5 {[%emt 0:10:24]} ({Reject} 13. Bxh7 g6 14. Bxg6 Nxf4 15. exf4 fxg6 16. Qxg6+ Kf8 $17) 13... f6 {[%emt 0:00:06] Prevents g4.} 14. Bg3 {[%emt 0:01:47] 14.Bf4 is vanishing.} f5 {[%emt 0:00:12]} 15. Ne5 {[%emt 0:02:55]} Rc8 {[%emt 0:15:12]} 16. Nxc6 {[%emt 0:10:47]} Rxc6 {[%emt 0:00:06] [#]} 17. Qe2 $146 {[%emt 0:01:21]} ({Predecessor:} 17. Be5 Nf6 18. f3 O-O 19. O-O Be8 20. Qd2 Nd7 21. Bg3 Nb6 22. b3 a6 23. Rfc1 Bg6 24. Ne2 Rxc1+ 25. Qxc1 {0-1 (47) Asaka,S (2153)-Kojima,S (2497) Tokyo 2018}) 17... Nf6 {[%emt 0:02:15]} 18. f3 {[%emt 0:04:01]} O-O {[%emt 0:03:35]} 19. O-O {[%emt 0:01:49]} Be8 {[%emt 0:10:53]} 20. Rfc1 {[%emt 0:08:40]} g5 {[%emt 0:02:28]} 21. Be5 {[%emt 0:18:09]} Nd7 {[%emt 0:05:12]} 22. Bg3 {[%emt 0:00:48]} Nf6 {[%emt 0:02:16]} 23. Be5 {[%emt 0:03:20]} Nd7 {[%emt 0:06:45]} 24. Bg3 {[%emt 0:00:25]} Nf6 {[%emt 0:00:39]} 25. Be5 {[%emt 0:00:17] Weighted Error Value: White=0.07 (flawless) /Black=0.02 (flawless)} 1/2-1/2

[Event "Hungarian Championship Women 2022"]
[Site "Budapest"]
[Date "2022.12.10"]
[Round "6.4"]
[White "Karacsonyi, Kata"]
[Black "Erdos, Boglarka"]
[Result "1-0"]
[ECO "C55"]
[WhiteElo "2109"]
[BlackElo "2180"]
[Annotator "TA"]
[PlyCount "53"]
[EventDate "2022.12.03"]
[EventType "tourn"]
[EventCountry "HUN"]
[SourceTitle "playchess.com"]
[Source "ChessBase"]
[SourceQuality "1"]
[TimeControl "40/5400+30:1800+30"]

{[%evp 20,53,0,0,0,-33,-33,-70,-56,-65,-32,-25,-25,-30,40,33,102,106,143,127,126,131,728,683,687,677,728,667,797,805,802,802,774,751,1495,1452]} 1. e4 {[%emt 0:00:33]} e5 {[%emt 0:00:37]} 2. Nf3 {[%emt 0:00:08]} Nc6 {[%emt 0:00:06]} 3. d4 {[%emt 0:00:18]} exd4 {[%emt 0:00:16]} 4. Bc4 {[%emt 0:00:06]} Nf6 {[%emt 0:00:26][%cal Bg8f6,Bf6e4,Be4c5][%mdl 32]} 5. e5 {[%emt 0:00:22]} d5 {[%emt 0:00:18]} 6. Bb5 {[%emt 0:00:18]} Ne4 {[%emt 0:00:31]} 7. Nxd4 {[%emt 0:00:27]} Bd7 {[%emt 0:00:33]} 8. Bxc6 {[%emt 0:06:44]} bxc6 {[%emt 0:00:08]} 9. O-O {[%emt 0:01:36]} Be7 {[%emt 0:03:29]} 10. f3 {[%emt 0:04:26]} Nc5 {[%emt 0:04:35]} 11. Nc3 {[%emt 0:07:33]} O-O {[%emt 0:12:48] C56: Two Knights: 4 d4 exd4 5 0-0 Nxe4.} 12. Qe2 {[%emt 0:09:04]} Ne6 {[%emt 0:09:05] [#]} 13. Nf5 $146 {[%emt 0:19:56]} ({Predecessor:} 13. Nxe6 fxe6 14. f4 Rb8 15. b3 Bb4 16. Bd2 Qe7 17. Nd1 Qc5+ 18. Ne3 Be8 19. Kh1 Bxd2 20. Qxd2 {½-½ (29) Schouten,J (2037)-Tikranian,A (2120) Utrecht 2016}) 13... Bc5+ {[%emt 0:01:10] Black is slightly better.} 14. Kh1 $1 {[%emt 0:00:25]} Nd4 {[%emt 0:08:13]} 15. Nxd4 {[%emt 0:01:52]} Bxd4 {[%emt 0:00:05]} 16. f4 {[%emt 0:05:14]} Qc8 {[%emt 0:16:15]} ({Black should try} 16... Bb6 $11) 17. Qd3 $14 {[%emt 0:02:21]} Bb6 {[%emt 0:01:06] [#]} (17... Bxc3 $14 18. Qxc3 a5) 18. f5 $1 $16 {[%emt 0:09:43] White is more active.} Re8 {[%emt 0:06:24] [#]} 19. e6 {[%emt 0:00:00]} fxe6 {[%emt 0:00:17]} 20. f6 {[%emt 0:01:11]} gxf6 $2 {[%emt 0:01:21][%mdl 8192] This move loses the game for Black.} (20... Rf8 $16) 21. Bh6 {[%emt 0:12:17] White is clearly winning.} Kh8 {[%emt 0:13:17]} 22. Rxf6 {[%emt 0:00:24] White threatens Rf7 and mate.} Rg8 {[%emt 0:01:31]} 23. Raf1 {[%emt 0:05:41] Threatening mate with Rf7.} ({Less strong is} 23. Rf7 Rg6 $16) 23... Qe8 {[%emt 0:11:53]} 24. Rf7 {[%emt 0:01:02][%csl Gd3][%cal Rf7h7]} Rg6 {[%emt 0:00:04]} 25. Rf8+ {[%emt 0:00:13]} Qxf8 {[%emt 0:00:06]} 26. Bxf8 {[%emt 0:00:22]} Kg8 {[%emt 0:00:32]} 27. Qf3 {[%emt 0:00:24] Weighted Error Value: White=0.18 (very precise) /Black=0.33} 1-0

[Event "Hungarian Championship Women 2022"]
[Site "Budapest"]
[Date "2022.12.10"]
[Round "6.5"]
[White "Mihok-Juhasz, Barbara"]
[Black "Szente Varga, Fruzsina"]
[Result "0-1"]
[ECO "C04"]
[WhiteElo "2206"]
[BlackElo "2075"]
[Annotator "TA"]
[PlyCount "56"]
[EventDate "2022.12.03"]
[EventType "tourn"]
[EventCountry "HUN"]
[SourceTitle "playchess.com"]
[Source "ChessBase"]
[SourceQuality "1"]
[TimeControl "40/5400+30:1800+30"]

{[%evp 12,56,58,45,43,32,36,45,56,-68,-48,-90,-88,-88,-69,-87,-72,-253,-224,-328,-190,-223,-103,-106,-108,-158,-152,-171,-164,-393,-299,-291,-298,-424,-411,-403,-392,-414,-405,-660,-659,-647,-475,-1004,-503,-29985,-29986]} 1. e4 {[%emt 0:00:35]} e6 {[%emt 0:00:36]} 2. d4 {[%emt 0:00:05]} d5 {[%emt 0:00:04]} 3. Nd2 {[%emt 0:00:05]} Nc6 {[%emt 0:00:25]} 4. Ngf3 {[%emt 0:00:24]} Nf6 {[%emt 0:00:12]} 5. e5 {[%emt 0:00:13]} Nd7 {[%emt 0:00:05]} 6. Bd3 {[%emt 0:00:07]} f6 {[%emt 0:01:05] [#]} 7. Ng5 $1 {[%emt 0:00:07]} Ndxe5 {[%emt 0:16:13] C04: French Tarrasch: 3...Nc6.} 8. dxe5 {[%emt 0:00:10]} fxg5 {[%emt 0:00:15]} 9. Qh5+ {[%emt 0:01:43]} Kd7 {[%emt 0:01:31] [#] White is slightly better. is the new trend.} 10. O-O $146 {[%emt 0:10:51]} (10. Nf3 $14) ({Predecessor:} 10. Nf3 g6 11. Qg4 h5 12. Qa4 g4 13. Nd4 Bc5 14. c3 a6 15. O-O Rb8 16. Be3 {1-0 (32) Naroditsky,D (2621)-Timofeev,A (2580) Chess.com INT 2020}) 10... Nxe5 $15 {[%emt 0:09:19]} 11. Be2 {[%emt 0:04:45]} Bd6 {[%emt 0:20:37]} 12. c4 {[%emt 0:00:14][%cal Ob2b4]} c6 {[%emt 0:01:56] Prevents b4.} 13. b4 {[%emt 0:04:14]} Qf6 {[%emt 0:06:33]} 14. f4 $2 {[%emt 0:09:36]} (14. Bb2 $17) 14... gxf4 {[%emt 0:08:06] ...g6 is the strong threat.} 15. Nb3 {[%emt 0:10:55]} (15. Rb1 $142) 15... Ng6 {[%emt 0:08:18]} (15... dxc4 16. Rxf4 Qe7 17. Nc5+ Kc7 18. Rf2 $15) (15... Nxc4 $142 16. Bxc4 dxc4) 16. b5 {[%emt 0:16:30]} Qh4 {[%emt 0:13:35]} (16... Ke7 $19 {And now ...e5 would win.} 17. Rd1 Nh4) 17. bxc6+ {[%emt 0:15:11]} bxc6 {[%emt 0:00:03] Threatens to win with ...Rf8.} 18. cxd5 {[%emt 0:00:06]} (18. Qxh4 $142 Nxh4 19. Bxf4) 18... cxd5 {[%emt 0:00:49]} 19. Bb5+ {[%emt 0:02:53]} Ke7 {[%emt 0:00:11][%cal Bd7e7,Be7f7,Bf7g8][%mdl 32]} 20. Qd1 {[%emt 0:03:29]} (20. Qxh4+ {is a better defense.} Nxh4 21. Bxf4 Bxf4 22. Rxf4) 20... Rf8 {[%emt 0:01:03]} 21. Nd4 {[%emt 0:02:02] Inhibits f3.} Kf7 {[%emt 0:02:02]} 22. g3 {[%emt 0:04:56]} (22. Rb1 $142) 22... Qe7 {[%emt 0:02:01]} 23. gxf4 {[%emt 0:04:57]} Kg8 {[%emt 0:00:14]} 24. f5 {[%emt 0:02:22]} Qh4 {[%emt 0:01:14][%csl Gd6][%cal Rh4h2]} (24... exf5 $2 {perishes.} 25. Qe2) 25. Nf3 {[%emt 0:01:04]} (25. Rf2 $142) 25... Qg4+ $19 {[%emt 0:00:10]} 26. Kh1 {[%emt 0:00:03]} Rxf5 {[%emt 0:00:57]} ({Less strong is} 26... exf5 27. Qxd5+ Kh8 28. Bc6 $14 (28. Qxa8 Nh4 $16)) 27. Bd3 {[%emt 0:00:21]} (27. Qd4 $142 Nf4 28. Qg1 Qxg1+ 29. Kxg1) 27... Rh5 {[%emt 0:00:53]} 28. Be2 {[%emt 0:03:06] [#]} (28. Rb1 $19 Ne5 29. Rb2 Nxd3 30. Qxd3) 28... Qg3 {[%emt 0:02:04] Weighted Error Value: White=1.15/Black=0.66} 0-1